[Event "Titled Tuesday Blitz November 9 2021"]
[White "Svane, Rasmus"]
[Black "Dzhumagaliev, Yan"]
[WhiteFideId "4657101"]
[BlackFideId "24100110"]
[WhiteElo "2643"]
[BlackElo "2507"]
[Result "1/2-1/2"]
[Round "08"]
[TimeControl "180+1"]
[Date "2021.11.09"]
[WhiteClock "0:00:09"]
[BlackClock "0:00:20"]

1. Nf3 {[%clk 0:03:00]}  h5 {[%clk 0:02:59]} 2. e4 {[%clk 0:02:59]}  h4 {[%clk 0:03:00]} 3. d4 {[%clk 0:02:59]}  c6 {[%clk 0:03:01]} 4. Bd3 {[%clk 0:02:55]}  d5 {[%clk 0:03:01]} 5. exd5 {[%clk 0:02:56]}  cxd5 {[%clk 0:03:02]} 6. h3 {[%clk 0:02:56]}  Nc6 {[%clk 0:03:03]} 7. c3 {[%clk 0:02:51]}  e6 {[%clk 0:03:03]} 8. Bf4 {[%clk 0:02:47]}  Bd6 {[%clk 0:03:02]} 9. Qd2 {[%clk 0:02:45]}  Bxf4 {[%clk 0:02:58]} 10. Qxf4 {[%clk 0:02:46]}  Qf6 {[%clk 0:02:59]} 11. Qe3 {[%clk 0:02:43]}  Nge7 {[%clk 0:02:58]} 12. Ne5 {[%clk 0:02:40]}  Nf5 {[%clk 0:02:52]} 13. Bxf5 {[%clk 0:02:39]}  Qxf5 {[%clk 0:02:53]} 14. Nd2 {[%clk 0:02:39]}  Nxe5 {[%clk 0:02:40]} 15. dxe5 {[%clk 0:02:40]}  Bd7 {[%clk 0:02:41]} 16. Nf3 {[%clk 0:02:38]}  Bb5 {[%clk 0:02:38]} 17. Nd4 {[%clk 0:02:33]}  Qd3 {[%clk 0:02:38]} 18. Qxd3 {[%clk 0:02:33]}  Bxd3 {[%clk 0:02:38]} 19. Kd2 {[%clk 0:02:34]}  Bg6 {[%clk 0:02:31]} 20. Nb5 {[%clk 0:02:32]}  Ke7 {[%clk 0:02:30]} 21. Rae1 {[%clk 0:02:28]}  Rh5 {[%clk 0:02:26]} 22. Nd4 {[%clk 0:02:08]}  a6 {[%clk 0:02:23]} 23. f3 {[%clk 0:01:56]}  Rg5 {[%clk 0:02:20]} 24. Re2 {[%clk 0:01:56]}  Rc8 {[%clk 0:02:20]} 25. Rhe1 {[%clk 0:01:55]}  Rc4 {[%clk 0:02:19]} 26. Rf2 {[%clk 0:01:53]}  Rh5 {[%clk 0:02:13]} 27. Re3 {[%clk 0:01:50]}  Rh8 {[%clk 0:02:10]} 28. f4 {[%clk 0:01:35]}  Rh5 {[%clk 0:02:09]} 29. b3 {[%clk 0:01:31]}  Rc8 {[%clk 0:02:08]} 30. Re1 {[%clk 0:01:23]}  Be4 {[%clk 0:02:04]} 31. c4 {[%clk 0:01:21]}  f6 {[%clk 0:01:50]} 32. cxd5 {[%clk 0:01:17]}  exd5 {[%clk 0:01:51]} 33. exf6+ {[%clk 0:01:11]}  gxf6 {[%clk 0:01:52]} 34. Rc1 {[%clk 0:00:58]}  Rxc1 {[%clk 0:01:46]} 35. Kxc1 {[%clk 0:00:58]}  Rh8 {[%clk 0:01:46]} 36. Re2 {[%clk 0:00:53]}  Kd6 {[%clk 0:01:45]} 37. Nf3 {[%clk 0:00:53]}  Bxf3 {[%clk 0:01:37]} 38. gxf3 {[%clk 0:00:53]}  Rg8 {[%clk 0:01:38]} 39. f5 {[%clk 0:00:53]}  Rg3 {[%clk 0:01:38]} 40. Re6+ {[%clk 0:00:53]}  Kc5 {[%clk 0:01:39]} 41. Rxf6 {[%clk 0:00:54]}  Rxh3 {[%clk 0:01:32]} 42. Rh6 {[%clk 0:00:49]}  Rxf3 {[%clk 0:01:32]} 43. Rxh4 {[%clk 0:00:48]}  Rxf5 {[%clk 0:01:32]} 44. Rh2 {[%clk 0:00:41]}  Rf1+ {[%clk 0:01:29]} 45. Kc2 {[%clk 0:00:40]}  a5 {[%clk 0:01:29]} 46. a3 {[%clk 0:00:41]}  b5 {[%clk 0:01:26]} 47. Kc3 {[%clk 0:00:40]}  b4+ {[%clk 0:01:22]} 48. axb4+ {[%clk 0:00:41]}  axb4+ {[%clk 0:01:22]} 49. Kc2 {[%clk 0:00:41]}  Rf3 {[%clk 0:01:22]} 50. Rg2 {[%clk 0:00:41]}  Rc3+ {[%clk 0:01:16]} 51. Kb2 {[%clk 0:00:41]}  Re3 {[%clk 0:01:17]} 52. Kc2 {[%clk 0:00:40]}  Kd4 {[%clk 0:01:17]} 53. Rg4+ {[%clk 0:00:36]}  Re4 {[%clk 0:01:17]} 54. Rg2 {[%clk 0:00:36]}  Rf4 {[%clk 0:01:17]} 55. Rd2+ {[%clk 0:00:34]}  Ke5 {[%clk 0:01:15]} 56. Re2+ {[%clk 0:00:34]}  Kd6 {[%clk 0:00:58]} 57. Rh2 {[%clk 0:00:34]}  Kc5 {[%clk 0:00:56]} 58. Rg2 {[%clk 0:00:33]}  Rf3 {[%clk 0:00:55]} 59. Rh2 {[%clk 0:00:33]}  Rc3+ {[%clk 0:00:55]} 60. Kb2 {[%clk 0:00:33]}  d4 {[%clk 0:00:53]} 61. Rh5+ {[%clk 0:00:32]}  Kc6 {[%clk 0:00:53]} 62. Rh4 {[%clk 0:00:32]}  Rd3 {[%clk 0:00:47]} 63. Kc2 {[%clk 0:00:31]}  Rc3+ {[%clk 0:00:47]} 64. Kd2 {[%clk 0:00:23]}  Kd5 {[%clk 0:00:48]} 65. Rh5+ {[%clk 0:00:24]}  Ke4 {[%clk 0:00:48]} 66. Rh4+ {[%clk 0:00:24]}  Ke5 {[%clk 0:00:49]} 67. Rh5+ {[%clk 0:00:25]}  Kd6 {[%clk 0:00:48]} 68. Rh4 {[%clk 0:00:22]}  Kc5 {[%clk 0:00:48]} 69. Rh5+ {[%clk 0:00:22]}  Kb6 {[%clk 0:00:48]} 70. Rh4 {[%clk 0:00:22]}  Rxb3 {[%clk 0:00:45]} 71. Rxd4 {[%clk 0:00:22]}  Kc5 {[%clk 0:00:44]} 72. Rd8 {[%clk 0:00:22]}  Rb2+ {[%clk 0:00:43]} 73. Kd3 {[%clk 0:00:21]}  Kb5 {[%clk 0:00:39]} 74. Ra8 {[%clk 0:00:12]}  Rh2 {[%clk 0:00:39]} 75. Ra7 {[%clk 0:00:12]}  Rb2 {[%clk 0:00:27]} 76. Ra8 {[%clk 0:00:12]}  Rh2 {[%clk 0:00:27]} 77. Ra7 {[%clk 0:00:12]}  Kc5 {[%clk 0:00:26]} 78. Ra8 {[%clk 0:00:11]}  Kb6 {[%clk 0:00:18]} 79. Rb8+ {[%clk 0:00:09]}  Ka5 {[%clk 0:00:19]} 80. Ra8+ {[%clk 0:00:09]}  Kb5 {[%clk 0:00:20]} 1/2-1/2


[Site "https://www.chess.com"]

[Event "Titled Tuesday Blitz November 9 2021"]
[White "Visakh N R"]
[Black "Yashmetov, Mikhail"]
[WhiteFideId "25012223"]
[BlackFideId "24198900"]
[WhiteElo "2454"]
[BlackElo "2305"]
[Result "1-0"]
[Round "08"]
[TimeControl "180+1"]
[Date "2021.11.09"]
[WhiteClock "0:02:11"]
[BlackClock "0:01:47"]

1. c4 {[%clk 0:03:00]}  e5 {[%clk 0:02:59]} 2. g3 {[%clk 0:02:59]}  Nf6 {[%clk 0:02:59]} 3. Bg2 {[%clk 0:02:57]}  d5 {[%clk 0:02:59]} 4. cxd5 {[%clk 0:02:57]}  Nxd5 {[%clk 0:03:00]} 5. Nc3 {[%clk 0:02:56]}  Nb6 {[%clk 0:03:00]} 6. Nf3 {[%clk 0:02:56]}  Nc6 {[%clk 0:03:00]} 7. O-O {[%clk 0:02:56]}  Be7 {[%clk 0:03:00]} 8. d3 {[%clk 0:02:54]}  O-O {[%clk 0:03:00]} 9. a3 {[%clk 0:02:54]}  Be6 {[%clk 0:03:00]} 10. b4 {[%clk 0:02:54]}  f5 {[%clk 0:02:59]} 11. Rb1 {[%clk 0:02:53]}  Bf6 {[%clk 0:02:59]} 12. Bb2 {[%clk 0:02:49]}  a5 {[%clk 0:02:54]} 13. b5 {[%clk 0:02:49]}  Nd4 {[%clk 0:02:54]} 14. Nd2 {[%clk 0:02:48]}  a4 {[%clk 0:02:28]} 15. Bxb7 {[%clk 0:02:42]}  Rb8 {[%clk 0:02:28]} 16. Bg2 {[%clk 0:02:42]}  Nb3 {[%clk 0:02:24]} 17. Nxb3 {[%clk 0:02:36]}  axb3 {[%clk 0:02:16]} 18. a4 {[%clk 0:02:33]}  e4 {[%clk 0:02:08]} 19. a5 {[%clk 0:02:33]}  Nd5 {[%clk 0:02:06]} 20. Nxd5 {[%clk 0:02:14]}  Bxb2 {[%clk 0:01:47]} 21. Nf4 {[%clk 0:02:11]} 1-0


[Site "https://www.chess.com"]

[Event "Titled Tuesday Blitz November 9 2021"]
[White "Aditya Mittal"]
[Black "Djokic, Mihailo"]
[WhiteFideId "35042025"]
[BlackFideId "976440"]
[WhiteElo "2245"]
[BlackElo "2008"]
[Result "1-0"]
[Round "09"]
[TimeControl "180+1"]
[Date "2021.11.09"]
[WhiteClock "0:00:57"]
[BlackClock "0:00:02"]

1. d4 {[%clk 0:03:00]}  Nf6 {[%clk 0:03:00]} 2. c4 {[%clk 0:03:01]}  g6 {[%clk 0:03:00]} 3. Nc3 {[%clk 0:03:02]}  Bg7 {[%clk 0:02:59]} 4. e4 {[%clk 0:03:02]}  d6 {[%clk 0:03:00]} 5. Be2 {[%clk 0:03:02]}  O-O {[%clk 0:03:01]} 6. Be3 {[%clk 0:03:03]}  e5 {[%clk 0:03:01]} 7. d5 {[%clk 0:03:03]}  Na6 {[%clk 0:03:02]} 8. h4 {[%clk 0:03:03]}  Nc5 {[%clk 0:03:01]} 9. Qc2 {[%clk 0:03:03]}  h5 {[%clk 0:02:08]} 10. f3 {[%clk 0:03:04]}  a5 {[%clk 0:02:07]} 11. Nh3 {[%clk 0:03:04]}  c6 {[%clk 0:01:47]} 12. Nf2 {[%clk 0:03:04]}  a4 {[%clk 0:01:45]} 13. g4 {[%clk 0:03:02]}  Qa5 {[%clk 0:01:41]} 14. g5 {[%clk 0:02:54]}  Nfd7 {[%clk 0:01:21]} 15. Qd2 {[%clk 0:02:55]}  f5 {[%clk 0:00:49]} 16. gxf6 {[%clk 0:02:52]}  Nxf6 {[%clk 0:00:47]} 17. dxc6 {[%clk 0:02:44]}  bxc6 {[%clk 0:00:27]} 18. Qxd6 {[%clk 0:02:40]}  Ne6 {[%clk 0:00:27]} 19. Qd2 {[%clk 0:02:10]}  Rd8 {[%clk 0:00:21]} 20. Qc1 {[%clk 0:02:10]}  a3 {[%clk 0:00:13]} 21. b4 {[%clk 0:01:57]}  Qxb4 {[%clk 0:00:12]} 22. Rb1 {[%clk 0:01:58]}  Qa5 {[%clk 0:00:11]} 23. Kf1 {[%clk 0:01:58]}  Nd4 {[%clk 0:00:09]} 24. Kg2 {[%clk 0:01:51]}  Be6 {[%clk 0:00:06]} 25. Rd1 {[%clk 0:01:50]}  Kh7 {[%clk 0:00:04]} 26. Bf1 {[%clk 0:01:48]}  Qa6 {[%clk 0:00:03]} 27. Rb4 {[%clk 0:01:36]}  c5 {[%clk 0:00:03]} 28. Ra4 {[%clk 0:01:33]}  Qc6 {[%clk 0:00:01]} 29. Rxa3 {[%clk 0:01:27]}  Rxa3 {[%clk 0:00:02]} 30. Qxa3 {[%clk 0:01:28]}  Ra8 {[%clk 0:00:02]} 31. Qb2 {[%clk 0:01:26]}  Ra7 {[%clk 0:00:02]} 32. Nd5 {[%clk 0:01:26]}  Bxd5 {[%clk 0:00:01]} 33. cxd5 {[%clk 0:01:27]}  Qd7 {[%clk 0:00:01]} 34. Rc1 {[%clk 0:01:23]}  Rb7 {[%clk 0:00:01]} 35. Qc3 {[%clk 0:01:23]}  Bf8 {[%clk 0:00:02]} 36. Nd3 {[%clk 0:01:22]}  Ra7 {[%clk 0:00:02]} 37. a3 {[%clk 0:01:21]}  Qa4 {[%clk 0:00:02]} 38. Nxe5 {[%clk 0:01:18]}  Qxa3 {[%clk 0:00:02]} 39. Qxa3 {[%clk 0:01:14]}  Rxa3 {[%clk 0:00:02]} 40. Bg5 {[%clk 0:01:15]}  Ng8 {[%clk 0:00:01]} 41. Nd7 {[%clk 0:01:14]}  Bg7 {[%clk 0:00:01]} 42. Rxc5 {[%clk 0:01:12]}  Nxf3 {[%clk 0:00:01]} 43. Rc7 {[%clk 0:01:08]}  Ne1+ {[%clk 0:00:02]} 44. Kf2 {[%clk 0:01:07]}  Nd3+ {[%clk 0:00:02]} 45. Bxd3 {[%clk 0:01:07]}  Rxd3 {[%clk 0:00:03]} 46. Nf6+ {[%clk 0:00:55]}  Kh8 {[%clk 0:00:02]} 47. Rc8 {[%clk 0:00:55]}  Bxf6 {[%clk 0:00:01]} 48. Bxf6+ {[%clk 0:00:56]}  Kh7 {[%clk 0:00:01]} 49. Rc7+ {[%clk 0:00:57]}  Kh6 {[%clk 0:00:02]} 50. Bg5# {[%clk 0:00:57]} 1-0


[Site "https://www.chess.com"]

[Event "Titled Tuesday Blitz November 9 2021"]
[White "Andreikin, Dmitry"]
[Black "Preotu, Razvan"]
[WhiteFideId "4158814"]
[BlackFideId "2613280"]
[WhiteElo "2736"]
[BlackElo "2407"]
[Result "1-0"]
[Round "09"]
[TimeControl "180+1"]
[Date "2021.11.09"]
[WhiteClock "0:00:04"]
[BlackClock "0:00:02"]

1. e4 {[%clk 0:03:00]}  c5 {[%clk 0:03:00]} 2. Nf3 {[%clk 0:03:00]}  d6 {[%clk 0:03:00]} 3. d4 {[%clk 0:02:59]}  cxd4 {[%clk 0:03:01]} 4. Nxd4 {[%clk 0:02:59]}  Nf6 {[%clk 0:03:01]} 5. Nc3 {[%clk 0:03:00]}  a6 {[%clk 0:03:02]} 6. Be3 {[%clk 0:02:58]}  e5 {[%clk 0:03:01]} 7. Nb3 {[%clk 0:02:58]}  Be6 {[%clk 0:03:00]} 8. Qf3 {[%clk 0:02:57]}  Nbd7 {[%clk 0:02:57]} 9. h3 {[%clk 0:02:57]}  Rc8 {[%clk 0:02:56]} 10. Bd3 {[%clk 0:02:46]}  Be7 {[%clk 0:02:48]} 11. g4 {[%clk 0:02:45]}  h6 {[%clk 0:02:44]} 12. Nd5 {[%clk 0:02:26]}  Bxd5 {[%clk 0:02:39]} 13. exd5 {[%clk 0:02:27]}  Nb6 {[%clk 0:02:40]} 14. Bxb6 {[%clk 0:02:20]}  Qxb6 {[%clk 0:02:40]} 15. O-O-O {[%clk 0:02:19]}  O-O {[%clk 0:02:17]} 16. Kb1 {[%clk 0:02:13]}  a5 {[%clk 0:01:53]} 17. Nd2 {[%clk 0:02:11]}  Qd4 {[%clk 0:01:37]} 18. h4 {[%clk 0:02:03]}  Qxg4 {[%clk 0:01:28]} 19. Qe3 {[%clk 0:01:42]}  Nxd5 {[%clk 0:01:26]} 20. Qa7 {[%clk 0:01:41]}  Nb4 {[%clk 0:01:12]} 21. Rhg1 {[%clk 0:01:28]}  Qf4 {[%clk 0:01:10]} 22. Qxb7 {[%clk 0:01:14]}  Bxh4 {[%clk 0:01:00]} 23. Qg2 {[%clk 0:01:03]}  Bg5 {[%clk 0:00:57]} 24. Ne4 {[%clk 0:01:02]}  d5 {[%clk 0:00:44]} 25. Nxg5 {[%clk 0:00:56]}  hxg5 {[%clk 0:00:38]} 26. Rh1 {[%clk 0:00:24]}  e4 {[%clk 0:00:37]} 27. Qh3 {[%clk 0:00:22]}  f5 {[%clk 0:00:37]} 28. Bb5 {[%clk 0:00:18]}  Rxc2 {[%clk 0:00:29]} 29. Bd7 {[%clk 0:00:10]}  Rxb2+ {[%clk 0:00:23]} 30. Ka1 {[%clk 0:00:03]}  Rxa2+ {[%clk 0:00:22]} 31. Kb1 {[%clk 0:00:04]}  Rb2+ {[%clk 0:00:19]} 32. Ka1 {[%clk 0:00:03]}  Qe5 {[%clk 0:00:04]} 33. Be6+ {[%clk 0:00:03]}  Qxe6 {[%clk 0:00:03]} 34. Kxb2 {[%clk 0:00:04]}  Qe5+ {[%clk 0:00:03]} 35. Ka3 {[%clk 0:00:04]}  Kf7 {[%clk 0:00:02]} 36. Rc1 {[%clk 0:00:04]} 1-0


[Site "https://www.chess.com"]

[Event "Titled Tuesday Blitz November 9 2021"]
[White "Bazeev, German"]
[Black "Harshavardhan G B"]
[WhiteFideId "24119350"]
[BlackFideId "25059009"]
[WhiteElo "2462"]
[BlackElo "1825"]
[Result "1-0"]
[Round "09"]
[TimeControl "180+1"]
[Date "2021.11.09"]
[WhiteClock "0:00:07"]
[BlackClock "0:00:05"]

1. d4 {[%clk 0:03:00]}  d5 {[%clk 0:02:58]} 2. Nf3 {[%clk 0:03:01]}  Nf6 {[%clk 0:02:56]} 3. c4 {[%clk 0:03:01]}  c6 {[%clk 0:02:56]} 4. Qc2 {[%clk 0:03:00]}  g6 {[%clk 0:02:52]} 5. Bf4 {[%clk 0:02:57]}  Bg7 {[%clk 0:02:50]} 6. e3 {[%clk 0:02:56]}  O-O {[%clk 0:02:46]} 7. cxd5 {[%clk 0:02:56]}  cxd5 {[%clk 0:02:46]} 8. Nc3 {[%clk 0:02:55]}  Nc6 {[%clk 0:02:45]} 9. h3 {[%clk 0:02:53]}  Bf5 {[%clk 0:02:44]} 10. Qb3 {[%clk 0:02:49]}  Na5 {[%clk 0:02:34]} 11. Qb4 {[%clk 0:02:46]}  Ne4 {[%clk 0:02:28]} 12. Be2 {[%clk 0:02:39]}  Nxc3 {[%clk 0:02:26]} 13. bxc3 {[%clk 0:02:30]}  Rc8 {[%clk 0:02:24]} 14. Nd2 {[%clk 0:02:18]}  b6 {[%clk 0:02:18]} 15. O-O {[%clk 0:02:13]}  e5 {[%clk 0:02:11]} 16. Bxe5 {[%clk 0:02:07]}  Nc6 {[%clk 0:02:08]} 17. Qa3 {[%clk 0:01:52]}  Nxe5 {[%clk 0:02:04]} 18. dxe5 {[%clk 0:01:51]}  Bxe5 {[%clk 0:02:04]} 19. Rac1 {[%clk 0:01:52]}  Qd7 {[%clk 0:02:00]} 20. Nf3 {[%clk 0:01:50]}  Bd6 {[%clk 0:02:00]} 21. Qb3 {[%clk 0:01:43]}  Rfd8 {[%clk 0:01:54]} 22. Rfd1 {[%clk 0:01:42]}  Be4 {[%clk 0:01:52]} 23. Nd4 {[%clk 0:01:28]}  Qe7 {[%clk 0:01:44]} 24. Bf1 {[%clk 0:01:23]}  Qe5 {[%clk 0:01:41]} 25. g3 {[%clk 0:01:23]}  Qh5 {[%clk 0:01:35]} 26. Bg2 {[%clk 0:01:19]}  Be5 {[%clk 0:01:02]} 27. Bxe4 {[%clk 0:00:57]}  dxe4 {[%clk 0:00:59]} 28. Qb1 {[%clk 0:00:57]}  Bxd4 {[%clk 0:00:51]} 29. cxd4 {[%clk 0:00:55]}  Qxh3 {[%clk 0:00:36]} 30. Qxe4 {[%clk 0:00:53]}  Qe6 {[%clk 0:00:33]} 31. Qxe6 {[%clk 0:00:52]}  fxe6 {[%clk 0:00:34]} 32. Kg2 {[%clk 0:00:49]}  Kf7 {[%clk 0:00:33]} 33. Kf3 {[%clk 0:00:49]}  Ke7 {[%clk 0:00:28]} 34. Rxc8 {[%clk 0:00:45]}  Rxc8 {[%clk 0:00:27]} 35. g4 {[%clk 0:00:46]}  Rc2 {[%clk 0:00:20]} 36. a3 {[%clk 0:00:31]}  Ra2 {[%clk 0:00:18]} 37. Rd3 {[%clk 0:00:30]}  h5 {[%clk 0:00:16]} 38. gxh5 {[%clk 0:00:23]}  gxh5 {[%clk 0:00:17]} 39. e4 {[%clk 0:00:24]}  h4 {[%clk 0:00:17]} 40. Kg2 {[%clk 0:00:21]}  Re2 {[%clk 0:00:17]} 41. e5 {[%clk 0:00:17]}  b5 {[%clk 0:00:15]} 42. Rh3 {[%clk 0:00:14]}  Re4 {[%clk 0:00:14]} 43. Rd3 {[%clk 0:00:14]}  Kd7 {[%clk 0:00:13]} 44. Kf3 {[%clk 0:00:13]}  Re1 {[%clk 0:00:13]} 45. Kg4 {[%clk 0:00:12]}  Rh1 {[%clk 0:00:13]} 46. f4 {[%clk 0:00:10]}  Kc6 {[%clk 0:00:13]} 47. d5+ {[%clk 0:00:11]}  exd5 {[%clk 0:00:13]} 48. f5 {[%clk 0:00:11]}  h3 {[%clk 0:00:12]} 49. Kg3 {[%clk 0:00:07]}  a5 {[%clk 0:00:11]} 50. f6 {[%clk 0:00:07]}  h2 {[%clk 0:00:10]} 51. Rf3 {[%clk 0:00:04]}  Rg1+ {[%clk 0:00:05]} 52. Kxh2 {[%clk 0:00:04]}  Rg8 {[%clk 0:00:06]} 53. e6 {[%clk 0:00:05]}  Kd6 {[%clk 0:00:05]} 54. e7 {[%clk 0:00:05]}  Kd7 {[%clk 0:00:04]} 55. Rf5 {[%clk 0:00:04]}  Rh8+ {[%clk 0:00:03]} 56. Kg3 {[%clk 0:00:04]}  Ke6 {[%clk 0:00:03]} 57. Rf1 {[%clk 0:00:03]}  b4 {[%clk 0:00:03]} 58. Kg4 {[%clk 0:00:02]}  bxa3 {[%clk 0:00:03]} 59. Kg5 {[%clk 0:00:03]}  Kf7 {[%clk 0:00:03]} 60. Re1 {[%clk 0:00:03]}  Rg8+ {[%clk 0:00:03]} 61. Kf5 {[%clk 0:00:03]}  a2 {[%clk 0:00:04]} 62. Ra1 {[%clk 0:00:03]}  Rh8 {[%clk 0:00:04]} 63. Ke5 {[%clk 0:00:04]}  Rh5+ {[%clk 0:00:04]} 64. Kd6 {[%clk 0:00:05]}  Rf5 {[%clk 0:00:05]} 65. Kd7 {[%clk 0:00:05]}  Re5 {[%clk 0:00:05]} 66. Rxa2 {[%clk 0:00:06]}  d4 {[%clk 0:00:04]} 67. Rd2 {[%clk 0:00:06]}  Re4 {[%clk 0:00:04]} 68. Rh2 {[%clk 0:00:05]}  a4 {[%clk 0:00:04]} 69. Rh8 {[%clk 0:00:05]}  Kxf6 {[%clk 0:00:05]} 70. e8=Q {[%clk 0:00:06]}  Rxe8 {[%clk 0:00:05]} 71. Rxe8 {[%clk 0:00:06]}  Kf5 {[%clk 0:00:05]} 72. Kd6 {[%clk 0:00:06]}  d3 {[%clk 0:00:06]} 73. Re3 {[%clk 0:00:06]}  a3 {[%clk 0:00:04]} 74. Rxd3 {[%clk 0:00:06]}  a2 {[%clk 0:00:05]} 75. Ra3 {[%clk 0:00:07]}  a1=Q {[%clk 0:00:05]} 76. Rxa1 {[%clk 0:00:07]} 1-0


[Site "https://www.chess.com"]

[Event "Titled Tuesday Blitz November 9 2021"]
[White "Cunjalo, Faris"]
[Black "Kollars, Dmitrij"]
[WhiteFideId "14410710"]
[BlackFideId "12909572"]
[WhiteElo "2263"]
[BlackElo "2584"]
[Result "0-1"]
[Round "09"]
[TimeControl "180+1"]
[Date "2021.11.09"]
[WhiteClock "0:00:40"]
[BlackClock "0:00:29"]

1. c4 {[%clk 0:03:00]}  e5 {[%clk 0:02:59]} 2. g3 {[%clk 0:03:01]}  c6 {[%clk 0:02:59]} 3. Nf3 {[%clk 0:02:59]}  e4 {[%clk 0:02:59]} 4. Nd4 {[%clk 0:03:00]}  d5 {[%clk 0:03:00]} 5. cxd5 {[%clk 0:03:01]}  Qxd5 {[%clk 0:03:00]} 6. Nc2 {[%clk 0:02:58]}  Nf6 {[%clk 0:03:00]} 7. Bg2 {[%clk 0:02:55]}  Qh5 {[%clk 0:03:00]} 8. d3 {[%clk 0:02:45]}  Bh3 {[%clk 0:02:56]} 9. Bxh3 {[%clk 0:02:38]}  Qxh3 {[%clk 0:02:57]} 10. Ne3 {[%clk 0:02:26]}  Nbd7 {[%clk 0:02:51]} 11. Nc3 {[%clk 0:02:26]}  Bb4 {[%clk 0:02:39]} 12. Qb3 {[%clk 0:02:24]}  Bxc3+ {[%clk 0:02:29]} 13. Qxc3 {[%clk 0:02:24]}  O-O {[%clk 0:02:29]} 14. b3 {[%clk 0:01:56]}  exd3 {[%clk 0:02:23]} 15. Qxd3 {[%clk 0:01:56]}  Rad8 {[%clk 0:02:14]} 16. Bb2 {[%clk 0:01:49]}  Nc5 {[%clk 0:02:05]} 17. Qf5 {[%clk 0:01:47]}  Qxf5 {[%clk 0:01:45]} 18. Nxf5 {[%clk 0:01:48]}  Nce4 {[%clk 0:01:46]} 19. f3 {[%clk 0:01:42]}  Nd6 {[%clk 0:01:46]} 20. Bxf6 {[%clk 0:01:37]}  gxf6 {[%clk 0:01:45]} 21. Ne3 {[%clk 0:01:29]}  Rfe8 {[%clk 0:01:37]} 22. Kf2 {[%clk 0:01:29]}  Nb5 {[%clk 0:01:37]} 23. Rhd1 {[%clk 0:01:24]}  Nd4 {[%clk 0:01:34]} 24. Rd2 {[%clk 0:01:19]}  Rxe3 {[%clk 0:01:29]} 25. Kxe3 {[%clk 0:01:06]}  Nf5+ {[%clk 0:01:29]} 26. Kf4 {[%clk 0:01:07]}  Rxd2 {[%clk 0:01:29]} 27. Kxf5 {[%clk 0:01:08]}  Kg7 {[%clk 0:01:22]} 28. e4 {[%clk 0:01:05]}  Rxh2 {[%clk 0:01:23]} 29. a3 {[%clk 0:00:58]}  Rd2 {[%clk 0:01:13]} 30. b4 {[%clk 0:00:56]}  Rd3 {[%clk 0:01:09]} 31. Kf4 {[%clk 0:00:57]}  Rb3 {[%clk 0:01:08]} 32. Ra2 {[%clk 0:00:55]}  a6 {[%clk 0:00:58]} 33. Ra1 {[%clk 0:00:53]}  h5 {[%clk 0:00:51]} 34. Ra2 {[%clk 0:00:53]}  Kg6 {[%clk 0:00:48]} 35. Ra1 {[%clk 0:00:52]}  Rd3 {[%clk 0:00:37]} 36. Ra2 {[%clk 0:00:51]}  Rc3 {[%clk 0:00:34]} 37. Ra1 {[%clk 0:00:50]}  b5 {[%clk 0:00:28]} 38. a4 {[%clk 0:00:43]}  Rc4 {[%clk 0:00:28]} 39. axb5 {[%clk 0:00:44]}  axb5 {[%clk 0:00:29]} 40. Ra6 {[%clk 0:00:43]}  f5 {[%clk 0:00:29]} 41. Rb6 {[%clk 0:00:40]}  fxe4 {[%clk 0:00:29]} 42. fxe4 {[%clk 0:00:40]}  f5 {[%clk 0:00:29]} 0-1


[Site "https://www.chess.com"]

[Event "Titled Tuesday Blitz November 9 2021"]
[White "Dzhumagaliev, Yan"]
[Black "Maghsoodloo, Parham"]
[WhiteFideId "24100110"]
[BlackFideId "12539929"]
[WhiteElo "2507"]
[BlackElo "2601"]
[Result "0-1"]
[Round "09"]
[TimeControl "180+1"]
[Date "2021.11.09"]
[WhiteClock "0:00:11"]
[BlackClock "0:00:12"]

1. Nf3 {[%clk 0:02:59]}  c5 {[%clk 0:02:57]} 2. h4 {[%clk 0:03:00]}  d5 {[%clk 0:02:57]} 3. h5 {[%clk 0:03:01]}  Nf6 {[%clk 0:02:57]} 4. c3 {[%clk 0:03:02]}  d4 {[%clk 0:02:56]} 5. d3 {[%clk 0:03:01]}  Nc6 {[%clk 0:02:56]} 6. e4 {[%clk 0:03:01]}  e5 {[%clk 0:02:50]} 7. h6 {[%clk 0:03:01]}  g6 {[%clk 0:02:50]} 8. Bg5 {[%clk 0:03:00]}  Be7 {[%clk 0:02:50]} 9. Nbd2 {[%clk 0:03:01]}  Be6 {[%clk 0:02:49]} 10. Be2 {[%clk 0:02:58]}  O-O {[%clk 0:02:49]} 11. Qc2 {[%clk 0:02:57]}  Rc8 {[%clk 0:02:48]} 12. O-O {[%clk 0:02:54]}  b5 {[%clk 0:02:47]} 13. a4 {[%clk 0:02:53]}  b4 {[%clk 0:02:43]} 14. Nc4 {[%clk 0:02:49]}  Nd7 {[%clk 0:02:35]} 15. Bd2 {[%clk 0:02:42]}  f6 {[%clk 0:02:16]} 16. cxb4 {[%clk 0:02:31]}  Nxb4 {[%clk 0:02:06]} 17. Qc1 {[%clk 0:02:24]}  Nb6 {[%clk 0:02:03]} 18. b3 {[%clk 0:02:15]}  Nxc4 {[%clk 0:02:03]} 19. bxc4 {[%clk 0:02:16]}  Rb8 {[%clk 0:02:04]} 20. a5 {[%clk 0:02:14]}  Qc7 {[%clk 0:02:04]} 21. Ne1 {[%clk 0:02:10]}  Bd6 {[%clk 0:01:59]} 22. g3 {[%clk 0:02:06]}  f5 {[%clk 0:01:59]} 23. Bf3 {[%clk 0:01:50]}  f4 {[%clk 0:01:48]} 24. Qd1 {[%clk 0:01:17]}  Qd7 {[%clk 0:01:37]} 25. Bxb4 {[%clk 0:01:12]}  cxb4 {[%clk 0:01:36]} 26. Ng2 {[%clk 0:01:08]}  g5 {[%clk 0:01:34]} 27. gxf4 {[%clk 0:01:02]}  gxf4 {[%clk 0:01:33]} 28. Kh2 {[%clk 0:00:49]}  Rf6 {[%clk 0:01:26]} 29. Nh4 {[%clk 0:00:31]}  Rxh6 {[%clk 0:01:26]} 30. Bh5 {[%clk 0:00:31]}  Kh8 {[%clk 0:01:13]} 31. Rg1 {[%clk 0:00:29]}  Be7 {[%clk 0:01:11]} 32. Kg2 {[%clk 0:00:08]}  Bxh4 {[%clk 0:01:11]} 33. Kf1 {[%clk 0:00:08]}  Qe7 {[%clk 0:01:08]} 34. Ke1 {[%clk 0:00:07]}  b3 {[%clk 0:01:07]} 35. Rb1 {[%clk 0:00:08]}  b2 {[%clk 0:01:07]} 36. Bg4 {[%clk 0:00:08]}  Bxf2+ {[%clk 0:01:04]} 37. Kxf2 {[%clk 0:00:08]}  Rh2+ {[%clk 0:01:05]} 38. Kf1 {[%clk 0:00:08]}  Qh4 {[%clk 0:01:05]} 39. Qf3 {[%clk 0:00:07]}  Bxg4 {[%clk 0:00:50]} 40. Rxg4 {[%clk 0:00:08]}  Rh1+ {[%clk 0:00:49]} 41. Rg1 {[%clk 0:00:09]}  Rh3 {[%clk 0:00:42]} 42. Qg4 {[%clk 0:00:03]}  Qxg4 {[%clk 0:00:42]} 43. Rxg4 {[%clk 0:00:04]}  Rxd3 {[%clk 0:00:42]} 44. Ke2 {[%clk 0:00:05]}  Rc3 {[%clk 0:00:43]} 45. Kd2 {[%clk 0:00:06]}  Rxc4 {[%clk 0:00:41]} 46. Rg5 {[%clk 0:00:06]}  Rc5 {[%clk 0:00:34]} 47. a6 {[%clk 0:00:07]}  Ra5 {[%clk 0:00:33]} 48. Kc2 {[%clk 0:00:07]}  Rc8+ {[%clk 0:00:31]} 49. Kd2 {[%clk 0:00:06]}  Rb5 {[%clk 0:00:27]} 50. Rh5 {[%clk 0:00:07]}  f3 {[%clk 0:00:23]} 51. Rbh1 {[%clk 0:00:04]}  Rc7 {[%clk 0:00:21]} 52. Rb1 {[%clk 0:00:03]}  Rf7 {[%clk 0:00:12]} 53. Ke1 {[%clk 0:00:04]}  f2+ {[%clk 0:00:13]} 54. Kf1 {[%clk 0:00:04]}  d3 {[%clk 0:00:13]} 55. Rh3 {[%clk 0:00:04]}  Rc7 {[%clk 0:00:13]} 56. Rxd3 {[%clk 0:00:04]}  Rc1+ {[%clk 0:00:13]} 57. Kxf2 {[%clk 0:00:03]}  Rxb1 {[%clk 0:00:14]} 58. Rd8+ {[%clk 0:00:04]}  Kg7 {[%clk 0:00:14]} 59. Rd7+ {[%clk 0:00:05]}  Kg6 {[%clk 0:00:15]} 60. Rxa7 {[%clk 0:00:06]}  Rf1+ {[%clk 0:00:15]} 61. Kxf1 {[%clk 0:00:07]}  b1=Q+ {[%clk 0:00:16]} 62. Kg2 {[%clk 0:00:07]}  Rb2+ {[%clk 0:00:17]} 63. Kh3 {[%clk 0:00:08]}  Qh1+ {[%clk 0:00:17]} 64. Kg4 {[%clk 0:00:09]}  Qg2+ {[%clk 0:00:16]} 65. Kh4 {[%clk 0:00:10]}  Qxe4+ {[%clk 0:00:13]} 66. Kg3 {[%clk 0:00:10]}  Rg2+ {[%clk 0:00:11]} 67. Kh3 {[%clk 0:00:11]}  Qg4# {[%clk 0:00:12]} 0-1


[Site "https://www.chess.com"]